bitfinex/quotes_ETHUSD_20260131
["timestamp","ask_amount","ask_price","bid_price","bid_amount"]
[1769880523620,0.01246157,2417.8,2416.6,14.5]
[1769880523789,1.03404061,2417.7,2416.6,14.5]
[1769880523990,0.51826646,2417.6,2416.6,14.5]
[1769880524687,0.51826646,2417.6,2416.3,0.0011]
[1769880524902,0.01246157,2417.5,2416.3,0.0011]
[1769880525297,0.51826646,2417.6,2416.3,0.0011]
[1769880525911,1.03412616,2417.5,2416.3,0.0011]
[1769880526115,0.57013588,2417.4,2416.3,0.0011]
[1769880526487,0.57013588,2417.4,2416.3,13.97276136]
[1769880526894,0.57013588,2417.4,2416.4,14.5]
[1769880527834,1.03421172,2417.3,2416.1,0.0011]
[1769880528042,0.01246157,2417.1,2416.1,0.0011]
[1769880528207,1.03421172,2417.3,2416.1,0.0011]
[1769880528399,0.57661176,2417.2,2415.9,0.0011]
[1769880529698,1.60433307,2417.4,2416.1,15.01884831]
[1769880529898,5.00336321,2417.6,2416.1,15.01884831]
[1769880529899,0.867,2417.6,2416.2,0.01246157]
[1769880530120,1.03399784,2417.8,2416.4,0.01246157]
[1769880530328,1.03399784,2417.8,2416.3,13.97166136]
[1769880530529,0.51709892,2417.7,2416.5,14.5]
[1769880531154,0.01246157,2417.5,2416.0,1.03476697]
[1769880531806,1.03416894,2417.4,2415.9,0.0011]
[1769880532012,0.51833063,2417.3,2415.9,0.0011]
[1769880532211,0.51833063,2417.3,2416.1,14.5]
[1769880532444,0.001,2417.9,2416.4,13.97166136]
[1769880532740,1.03498148,2417.9,2416.4,13.97166136]
[1769880532954,0.001,2417.9,2416.5,13.98412293]
[1769880533249,17.69271534,2418.9,2417.1,13.98412293]
[1769880533250,4.13431048,2418.8,2417.1,13.98412293]
[1769880533411,4.13431048,2418.8,2417.2,14.5]
[1769880533608,0.01246157,2418.6,2417.2,14.5]
[1769880533815,1.03378406,2418.3,2417.2,14.5]
[1769880534034,0.51813819,2418.2,2417.2,14.5]
[1769880534215,1.03378406,2418.3,2417.2,14.5]
[1769880535541,0.001,2418.1,2417.2,14.5]
[1769880535741,0.01346157,2418.1,2417.2,14.5]
[1769880536114,1.03391232,2418.0,2417.2,14.5]
[1769880536318,1.03391232,2418.0,2416.1,1.03469731]
[1769880536319,0.867,2417.9,2416.1,1.03469731]
[1769880536517,0.01246157,2417.8,2416.1,1.03469731]
[1769880536716,0.01246157,2417.6,2416.0,1.03475249]
[1769880536959,1.38530232,2417.9,2416.2,13.97166136]
[1769880537114,1.38530232,2417.9,2416.7,1.03444]
[1769880537450,1.38530232,2417.9,2416.6,1.0344895]
[1769880537849,1.38530232,2417.9,2416.7,14.5]
[1769880538346,1.90095954,2417.9,2416.7,29.50612233]
[1769880538727,0.867,2417.9,2416.8,13.97166136]
[1769880539429,0.001,2418.1,2417.0,13.97166136]
[1769880539627,0.001,2418.1,2417.1,16.82007365]
[1769880539947,1.03348491,2419.0,2417.5,13.97166136]
[1769880540443,1.03327133,2419.6,2417.7,15.00570197]
[1769880540614,0.01246157,2419.4,2417.7,15.00570197]
[1769880540816,0.867,2419.5,2418.0,13.97166136]
[1769880541020,0.28252441,2419.7,2418.2,13.97166136]
[1769880541220,0.28252441,2419.7,2418.4,13.97166136]
[1769880541421,0.867,2420.5,2418.7,13.98412293]
[1769880541768,0.001,2421.1,2419.5,13.97166136]
[1769880542119,0.001,2421.1,2419.8,13.97166136]
[1769880542444,0.001,2421.1,2419.7,1.03317937]
[1769880542637,0.001,2421.1,2419.8,1.03313065]
[1769880543017,0.001,2421.1,2419.8,15.00479201]
[1769880544237,0.001,2421.1,2419.9,28.47166136]
[1769880544441,0.001,2421.1,2419.9,29.50475731]
[1769880544621,0.001,2421.1,2420.0,2.95047573]
[1769880544817,0.001,2421.1,2419.9,1.03309207]
[1769880545132,0.001,2421.1,2419.8,1.03311818]
[1769880545344,0.001,2421.1,2419.9,15.53309942]
[1769880545930,0.001,2421.1,2420.0,13.97166136]
[1769880546223,0.001,2421.1,2420.2,1.03297248]
[1769880546420,0.001,2421.1,2420.2,15.00463384]
[1769880546618,0.001,2421.3,2420.1,2.95047608]
[1769880546829,0.001,2421.3,2420.1,1.03300466]
[1769880547041,0.001,2421.3,2419.9,14.5]
[1769880547463,0.001,2421.3,2420.0,1.0330163]
[1769880547628,0.001,2420.9,2419.9,14.5]
[1769880547964,0.001,2420.9,2420.0,1.45]
[1769880548242,0.001,2420.9,2419.1,1.03344218]
[1769880548455,0.001,2420.9,2419.1,1.04590375]
[1769880548615,0.001,2420.9,2419.3,13.70090508]
[1769880548819,0.001,2420.9,2419.4,13.68844351]
[1769880549018,0.001,2420.9,2419.3,0.01246157]
[1769880549019,0.001,2420.9,2419.7,13.68844351]
[1769880549242,0.001,2420.9,2420.0,13.70090508]
[1769880549549,1.03351501,2421.3,2420.1,13.68844351]
[1769880549915,1.03351501,2421.3,2420.2,14.5]
[1769880550520,0.001,2421.3,2420.2,14.5]
[1769880551130,0.001,2421.3,2420.3,13.68844351]
[1769880551557,0.001,2421.3,2420.3,13.70090508]
[1769880551860,0.866,2422.1,2420.5,13.68844351]
[1769880552059,0.001,2422.3,2420.8,13.70090508]
[1769880552060,1.03309616,2422.3,2420.8,13.70090508]
[1769880552265,1.03309616,2422.3,2420.9,1.38379823]
[1769880552447,0.001,2422.3,2421.2,1.03254584]
[1769880552623,0.001,2422.3,2421.4,0.01246157]
[1769880552951,0.001,2422.3,2421.5,0.01246157]
[1769880553152,0.001,2422.3,2421.3,13.68844351]
[1769880553334,0.001,2422.3,2421.6,14.5]
[1769880555525,0.001,2422.3,2421.6,15.53237312]
[1769880555833,1.03177996,2423.0,2421.6,15.53237312]
[1769880556653,4.12711514,2423.2,2421.6,15.53237312]
[1769880556833,0.11486157,2423.1,2421.6,14.5]
[1769880557026,0.01246157,2422.9,2421.6,14.5]
[1769880557227,0.01246157,2422.7,2420.9,1.37133666]
[1769880557432,0.01246157,2422.5,2420.8,1.03270147]
[1769880557629,0.866,2422.4,2420.6,4.13120209]
[1769880557840,0.866,2422.4,2420.9,14.5]
[1769880558039,0.866,2422.4,2421.0,1.55327129]
[1769880558356,0.01246157,2422.1,2420.1,0.866]
[1769880558562,0.01246157,2422.6,2420.3,4.14410595]
[1769880558857,0.01246157,2422.4,2420.5,0.01246157]
[1769880559056,0.01246157,2422.4,2420.3,4.13164438]
[1769880559262,0.01246157,2422.4,2420.4,1.88530177]
[1769880559433,0.01246157,2422.3,2420.4,1.88530177]
[1769880559634,0.01246157,2422.3,2420.6,14.5]
[1769880560034,0.01246157,2422.0,2420.6,14.5]
[1769880560344,0.01246157,2421.8,2420.6,14.5]
[1769880560530,0.1024,2421.4,2420.6,1.63853018]
[1769880560728,0.1024,2421.4,2420.1,0.0011]
[1769880560950,0.01246157,2420.8,2419.5,1.37009051]
[1769880561159,0.01246157,2420.5,2418.9,0.0011]
[1769880561338,0.01246157,2420.1,2418.9,0.0011]
[1769880561533,0.01246157,2419.8,2418.7,14.5]
[1769880561743,0.01246157,2419.8,2417.3,5.0028276]
[1769880561744,0.01246157,2419.4,2417.3,5.0028276]
[1769880561944,0.01246157,2419.4,2417.4,0.41492116]
[1769880561945,0.01246157,2418.9,2417.4,0.41492116]
[1769880562154,0.01246157,2418.9,2416.6,13.68844351]
[1769880562155,12.96140536,2419.5,2417.5,14.5]
[1769880562450,0.11486157,2419.4,2417.5,14.5]
[1769880562649,1.0333328,2419.4,2417.8,13.70090508]
[1769880562839,1.0333328,2419.4,2417.8,13.68844351]
[1769880563043,0.1024,2419.8,2418.1,13.68844351]
[1769880563256,1.03305785,2420.0,2418.2,13.70090508]
[1769880563491,1.03302305,2420.1,2418.5,13.70090508]
[1769880563770,0.1024,2420.3,2418.3,14.5]
[1769880563771,1.03298837,2420.2,2418.3,14.5]
[1769880564073,1.03298837,2420.2,2418.4,1.67348444]
[1769880564437,1.03298837,2420.2,2418.4,15.37438952]
[1769880564636,4.13188307,2420.3,2418.6,1.03365583]
[1769880564868,4.13188307,2420.3,2418.6,1.0461174]
[1769880565192,4.13188307,2420.3,2418.7,0.51932023]
[1769880565497,1.03284445,2420.5,2418.9,13.70090508]
[1769880565636,1.03284445,2420.5,2418.9,13.68844351]
[1769880565835,1.03284445,2420.5,2419.0,14.5]
[1769880566039,1.03284445,2420.5,2419.1,2.81884435]
[1769880566246,0.866,2420.7,2419.1,16.51974943]
[1769880566247,1.89877243,2420.7,2419.1,16.51974943]
[1769880566470,1.89877243,2420.7,2419.1,13.68844351]
[1769880566672,1.89877243,2420.7,2419.2,14.5]
[1769880567065,1.89877243,2420.7,2419.2,15.53336685]
[1769880567253,1.89877243,2420.7,2419.2,15.53338406]
[1769880567447,1.89877243,2420.7,2419.2,14.5]
[1769880567740,2.91734928,2420.7,2419.3,2.92218688]
[1769880568403,2.91734928,2420.7,2419.4,14.5]
[1769880568582,1.89877243,2420.7,2419.4,14.5]
[1769880569662,1.89877243,2420.7,2419.4,15.53331361]
[1769880570663,1.89877243,2420.7,2419.4,14.5]
[1769880571077,1.89876337,2420.7,2419.4,15.53330897]
[1769880571379,4.24488951,2421.3,2419.4,14.51246157]
[1769880571380,4.13002364,2421.3,2419.4,14.51246157]
[1769880571677,0.01246157,2420.5,2418.7,14.20776374]
[1769880571876,0.01246157,2420.1,2418.6,1.03364444]
[1769880572176,0.01246157,2420.0,2418.8,14.5]
[1769880572401,0.01246157,2420.0,2418.9,1.45]
[1769880572560,0.01246157,2420.2,2418.9,2.4835182]
[1769880572754,0.01246157,2420.2,2418.9,2.48351874]
[1769880573093,1.03301516,2420.1,2419.0,1.03348488]
[1769880573258,1.03301516,2420.1,2419.1,0.24834849]
[1769880574583,1.03301516,2420.1,2418.9,1.45]
[1769880574988,1.04547673,2420.1,2418.8,14.5]
[1769880575156,0.11486157,2420.0,2418.8,14.5]
[1769880575356,0.01246157,2419.8,2418.1,1.03384204]
[1769880575585,0.01246157,2419.3,2417.7,0.866]
[1769880575768,0.01246157,2419.6,2418.5,1.03368052]
[1769880575968,0.01246157,2419.8,2418.6,14.5]
[1769880576366,0.1024,2420.0,2418.6,14.5]
[1769880576570,0.1024,2420.0,2418.7,1.03360741]
[1769880576801,1.03301516,2420.1,2418.8,2.58692956]
[1769880576986,1.0329298,2420.3,2418.8,2.58692956]
[1769880577362,1.0329298,2420.3,2418.8,15.36837589]
[1769880577562,1.0329298,2420.3,2418.8,15.35591432]
[1769880578171,1.0329298,2420.3,2418.8,15.36837589]
[1769880578371,0.866,2420.4,2419.0,12.78144633]
[1769880578588,1.03258849,2421.1,2419.5,12.76898476]
[1769880578764,1.03258849,2421.1,2419.5,12.78144633]
[1769880578966,2.04859394,2421.1,2419.6,15.77939079]
[1769880579306,2.04859394,2421.1,2419.6,16.8125926]
[1769880579496,2.04859394,2421.1,2419.6,15.77939079]
[1769880579697,0.11486157,2421.0,2419.6,14.5]
[1769880579863,0.01246157,2420.8,2419.6,14.5]
[1769880580069,0.01246157,2420.9,2419.0,12.76898476]
[1769880580268,0.01246157,2420.9,2419.2,1.03339824]
[1769880580465,0.01246157,2420.9,2418.9,1.95151209]
[1769880580466,0.01246157,2420.7,2418.9,1.95151209]
[1769880580685,0.11486157,2420.7,2419.0,1.03348009]
[1769880580883,0.65692769,2420.6,2419.0,1.03348009]
[1769880581092,1.03280178,2420.6,2419.1,14.5]
[1769880581394,1.03280178,2420.6,2419.2,1.55334801]
[1769880581992,1.03280178,2420.6,2419.3,14.5]
[1769880582398,1.03280178,2420.6,2419.1,1.04590351]
[1769880582399,0.001,2421.2,2420.2,13.03040195]
[1769880582583,1.03354774,2421.2,2419.6,13.03040195]
[1769880582894,1.03354774,2421.2,2419.7,14.34590371]
[1769880583108,0.001,2421.2,2419.9,1.03310054]
[1769880583274,0.001,2421.2,2419.9,14.07596406]
[1769880583597,0.001,2421.2,2419.8,4.14486373]
[1769880583598,0.001,2421.2,2419.8,1.0331206]
[1769880583774,0.001,2420.9,2419.9,0.64687337]
[1769880583974,0.001,2420.9,2419.3,13.03040195]
[1769880584182,0.001,2420.9,2419.4,1.03328955]
[1769880584670,0.001,2420.9,2418.8,0.87846157]
[1769880584671,0.01246157,2420.5,2418.6,1.03362813]
[1769880584876,0.01246157,2420.3,2418.6,1.03365423]
[1769880585079,1.03297248,2420.2,2418.5,4.1470849]
[1769880585386,1.03297248,2420.2,2418.6,2.75140452]
[1769880585986,1.03271645,2420.8,2419.0,13.04286352]
[1769880586286,1.03367465,2420.9,2419.1,2.17153251]
[1769880586493,1.03367465,2420.9,2419.1,15.20193446]
[1769880586789,0.001,2420.9,2419.5,0.01246157]
[1769880587108,0.001,2420.9,2419.6,1.03322863]
[1769880588503,0.001,2420.9,2419.6,1.0456902]
[1769880588700,0.001,2420.9,2419.6,1.03322863]
[1769880588903,0.001,2420.9,2419.9,0.01246157]
[1769880589105,0.001,2421.2,2419.9,0.01246157]
[1769880589106,0.001,2421.2,2420.0,14.0634598]
[1769880589276,0.001,2421.2,2420.2,13.03040195]
[1769880591309,1.89831822,2421.8,2420.3,14.06333175]
[1769880591707,1.89831822,2421.8,2420.3,14.07579332]
[1769880591884,1.89831822,2421.8,2420.3,14.06333175]
[1769880592080,0.001,2422.9,2420.8,0.01246157]
[1769880592417,0.001,2422.9,2421.4,0.01246157]
[1769880592418,1.03284692,2422.9,2421.4,0.01246157]
[1769880592583,1.03284692,2422.9,2421.4,1.31924024]
[1769880593420,0.001,2422.9,2421.5,1.04487949]
[1769880594115,0.001,2422.9,2421.5,1.03241792]
[1769880594490,0.001,2422.9,2421.4,2.33922815]
[1769880594693,0.001,2422.9,2421.4,1.03244948]
[1769880595210,0.001,2422.9,2421.3,17.17270576]
[1769880595389,0.001,2422.9,2421.4,13.03040195]
[1769880596211,0.001,2422.9,2421.4,13.04286352]
[1769880596506,0.001,2422.9,2421.6,13.03040195]
[1769880596706,0.001,2422.9,2421.2,14.07538043]
[1769880597077,0.001,2422.9,2421.2,14.06291886]
[1769880597482,0.001,2422.7,2421.2,14.06291886]
[1769880598204,0.001,2422.7,2421.2,14.07538043]
[1769880598407,0.001,2422.7,2421.3,1.82180254]
[1769880599809,0.001,2422.7,2420.8,4.13071442]
[1769880600011,0.87846157,2422.6,2420.8,1.03269734]
[1769880600191,0.01346157,2422.7,2421.3,14.06290514]
[1769880600384,0.001,2422.7,2421.3,14.06290514]
[1769880600579,0.001,2422.7,2421.3,1.03250319]
[1769880600785,0.001,2422.7,2421.4,13.54665355]
[1769880600986,0.001,2422.9,2421.9,13.03040195]
[1769880601187,0.001,2422.9,2421.8,0.01246157]
[1769880601188,1.03142532,2423.9,2422.0,13.04286352]
[1769880601408,7.31784513,2425.2,2422.0,13.04286352]
[1769880601409,0.23661592,2423.5,2422.7,0.01246157]
[1769880601682,0.23661592,2423.5,2422.4,13.04286352]
[1769880601683,0.23661592,2423.5,2422.5,14.06239369]
[1769880601889,0.23661592,2423.5,2422.6,1.81905102]
[1769880602295,1.26822384,2423.5,2422.6,1.81905102]
[1769880602503,1.26822384,2423.5,2422.4,1.03203335]
[1769880602912,1.26822384,2423.5,2422.4,14.0624353]
[1769880602913,0.23661592,2423.5,2422.4,14.0624353]
[1769880603112,1.03126804,2424.2,2422.4,14.0624353]
[1769880604209,1.04372961,2424.2,2422.4,14.0624353]
[1769880604416,0.01246157,2423.7,2422.5,1.81907344]
[1769880604596,0.01246157,2423.7,2422.3,1.03205994]
[1769880604795,0.01246157,2423.5,2421.6,4.12934342]
[1769880604994,0.01246157,2423.0,2421.4,1.54869372]
[1769880605207,0.01246157,2422.7,2421.5,1.45790957]
[1769880605392,0.01246157,2422.7,2421.1,1.03255761]
[1769880605604,0.01246157,2422.5,2420.7,13.03040195]
[1769880605922,1.03203434,2422.4,2420.8,1.03271645]
[1769880606222,1.03203434,2422.4,2420.4,1.82185125]
[1769880606223,0.01246157,2421.9,2420.4,1.82185125]
[1769880606428,0.01246157,2421.7,2420.4,0.0011]
[1769880606616,0.87746157,2421.6,2420.4,0.0011]
[1769880606798,0.01246157,2421.5,2420.4,0.0011]
[1769880606994,1.04449591,2422.4,2420.7,1.03275611]
[1769880607194,0.01246157,2421.9,2420.4,0.0011]
[1769880607429,0.01246157,2421.8,2420.4,0.0011]
[1769880607597,0.01246157,2421.6,2420.4,0.0011]
[1769880607794,0.01246157,2421.4,2420.4,0.0011]
[1769880608120,0.01246157,2421.2,2420.4,0.0011]
[1769880608692,1.03247628,2421.4,2420.4,0.0011]
[1769880608895,1.03220478,2422.0,2420.4,13.311091]
[1769880609206,0.01246157,2422.5,2420.5,14.65356167]
[1769880609405,1.03201389,2422.5,2421.0,0.0011]
[1769880610010,0.01246157,2422.3,2421.0,0.0011]
[1769880610324,0.01246157,2422.4,2421.0,0.0011]
[1769880610530,1.03193359,2422.7,2421.0,13.311091]
[1769880610707,1.03193359,2422.7,2421.1,1.34357067]
[1769880611028,1.03182137,2422.9,2421.1,14.65356167]
[1769880611212,1.03182137,2422.9,2421.2,13.32245257]
[1769880611614,1.03182137,2422.9,2421.2,13.309991]
[1769880611928,1.0317362,2423.1,2421.4,14.34245156]
[1769880612105,0.865,2423.2,2421.6,13.32245257]
[1769880612106,1.89669894,2423.2,2421.6,13.32245257]
[1769880612308,1.89671213,2423.2,2421.6,13.32245257]
[1769880612518,0.01246157,2424.3,2422.1,13.32245257]
[1769880612846,0.87746157,2424.4,2422.6,13.309991]
[1769880613009,0.865,2424.4,2422.7,1.3309991]
[1769880613209,1.04351695,2424.7,2422.7,14.6409901]
[1769880613415,1.03088532,2425.1,2423.1,13.32245257]
[1769880613739,1.03088532,2425.1,2423.3,13.32245257]
[1769880614036,1.16341114,2425.5,2424.0,13.309991]
[1769880614037,0.28594957,2425.5,2424.0,13.309991]
[1769880614214,14.01369333,2425.5,2423.4,1.33349141]
[1769880614413,1.31667325,2425.5,2423.4,14.34159862]
[1769880614604,0.01246157,2425.2,2423.4,1.03160744]
[1769880614806,0.01246157,2425.3,2423.5,13.82579514]
[1769880615006,0.01246157,2425.2,2423.5,13.82579514]
[1769880615203,0.01246157,2424.8,2423.5,0.51580414]
[1769880615535,1.32914078,2425.5,2423.7,13.309991]
[1769880615753,0.01246157,2425.9,2423.6,0.865]
[1769880615754,0.2278328,2426.6,2424.1,13.309991]
[1769880615950,1.11472298,2426.2,2424.6,14.34108891]
[1769880616116,0.09676187,2426.2,2424.7,15.15653906]
[1769880616301,0.01246157,2426.1,2424.7,15.15653906]
[1769880616505,0.01246157,2425.8,2424.7,1.84654806]
[1769880616702,0.01246157,2425.8,2423.7,4.12580167]
[1769880616703,0.01246157,2425.2,2423.8,1.03141395]
[1769880617035,0.01246157,2424.7,2423.6,1.03152288]
[1769880617343,0.01246157,2425.1,2422.9,4.1272749]
[1769880617344,0.01246157,2425.6,2424.2,4.12497311]
[1769880617544,0.01246157,2425.6,2423.7,13.309991]
[1769880617545,0.01246157,2425.8,2423.7,13.309991]
[1769880617843,0.01246157,2425.5,2424.1,4.1252282]
[1769880618008,1.04321938,2425.4,2424.0,1.03135313]
[1769880618208,0.01246157,2425.2,2424.0,1.03135313]
[1769880618427,0.01246157,2426.0,2424.1,15.15666667]
[1769880618735,0.0843003,2426.2,2424.1,15.15666667]
[1769880618940,0.0843003,2426.2,2424.3,13.309991]
[1769880619105,1e-08,2426.5,2424.2,0.01246157]
[1769880619304,0.21527905,2427.8,2426.1,13.309991]
[1769880619532,0.01246157,2428.8,2426.9,13.309991]
[1769880619836,0.01246157,2428.6,2426.5,0.01246157]
[1769880620132,1.02944204,2428.5,2426.6,0.01246157]
[1769880620523,1.02944204,2428.5,2426.6,1.43777087]
[1769880620704,1.02944204,2428.5,2426.8,0.01246157]
[1769880620911,0.001,2429.4,2427.3,13.32245257]
[1769880620912,1.02910303,2429.3,2427.3,13.32245257]
[1769880621106,0.001,2429.4,2428.2,0.01246157]
[1769880621324,1.02863726,2430.4,2428.6,13.309991]
[1769880621516,1.02863726,2430.4,2429.0,0.01246157]
[1769880621713,1.02863726,2430.4,2428.7,1.33224526]
[1769880621923,1.02872191,2430.2,2428.2,1.04203079]
[1769880622132,4.11394535,2430.8,2428.8,0.01246157]
[1769880622313,4.11394535,2430.8,2428.7,0.01246157]
[1769880622515,0.01246157,2429.0,2426.5,13.309991]
[1769880622725,0.01246157,2428.9,2426.8,0.01246157]
[1769880622927,0.21499132,2430.7,2429.4,13.309991]
[1769880623126,0.01246157,2430.5,2429.1,13.309991]
[1769880623330,4.32689313,2432.0,2429.5,13.309991]
[1769880623632,0.01246157,2430.2,2429.5,13.309991]
[1769880623810,0.01246157,2430.2,2429.2,2.2824991]
[1769880623811,0.01246157,2429.6,2429.2,1.4174991]
[1769880624010,0.01246157,2429.8,2428.4,0.864]
[1769880624011,0.01246157,2429.9,2428.5,14.33943304]
[1769880624236,1.0409514,2430.8,2428.5,14.33943304]
[1769880624237,0.01246157,2429.6,2428.5,14.33943304]
[1769880624616,0.01246157,2429.0,2428.4,1.02946758]
[1769880624943,0.01246157,2429.0,2427.2,1.0299934]
[1769880624944,0.01246157,2428.0,2427.2,1.0299934]
[1769880625242,0.01246157,2428.0,2426.3,1.0303663]
[1769880625243,0.01246157,2427.2,2426.3,1.0303663]
[1769880625405,0.864,2428.4,2426.3,1.0303565]
[1769880625605,0.01246157,2427.0,2426.4,0.51520057]
[1769880625827,0.01246157,2427.4,2426.3,1.03036497]
[1769880626037,0.01246157,2427.3,2425.7,13.309991]
[1769880626225,0.01246157,2427.3,2425.6,4.12252629]
[1769880626226,1.0294787,2428.5,2426.3,13.309991]
[1769880626425,0.01246157,2428.3,2426.6,13.309991]
[1769880626606,0.01246157,2428.8,2426.9,13.412391]
[1769880626808,0.01246157,2428.2,2426.9,13.309991]
[1769880627031,0.01246157,2427.8,2426.6,0.864]
[1769880627237,0.01246157,2427.9,2426.2,0.1024]
[1769880627415,0.01246157,2427.5,2426.2,1.3412391]
[1769880627611,0.01246157,2429.2,2426.4,13.309991]
[1769880627849,0.01246157,2428.2,2426.4,13.309991]
[1769880628142,0.01246157,2428.2,2426.6,1.03024808]
[1769880628143,0.01246157,2427.7,2426.6,1.03024808]
[1769880628322,0.01246157,2427.8,2426.6,1.03024808]
[1769880628519,0.01246157,2427.4,2426.5,2.7809991]
[1769880628717,0.01246157,2427.1,2426.6,0.3811314]
[1769880628938,0.01246157,2427.2,2426.3,14.5]
[1769880629141,0.01246157,2426.8,2425.6,13.309991]
[1769880629316,0.01246157,2426.7,2425.6,13.309991]
[1769880629512,0.01246157,2426.7,2425.7,1.3309991]
[1769880629513,0.01246157,2426.5,2425.7,1.3309991]
[1769880629717,0.01246157,2426.3,2425.8,14.5]
[1769880629945,0.01246157,2426.2,2425.8,14.5]
[1769880630143,0.01246157,2425.8,2424.5,4.12455704]
[1769880630344,0.01246157,2425.6,2424.2,17.4349657]
[1769880630543,0.01246157,2425.3,2424.3,16.24349657]
[1769880630845,0.01246157,2424.9,2424.3,14.5]
[1769880631165,0.01246157,2424.9,2422.0,13.309991]
[1769880631166,0.01246157,2424.4,2422.0,13.309991]
[1769880631347,0.01246157,2424.4,2422.9,1.03180574]
[1769880631348,0.01246157,2424.0,2422.9,1.03180574]
[1769880631649,0.01246157,2423.8,2422.9,1.03180552]
[1769880631871,0.01246157,2423.6,2422.1,2.1949991]
[1769880632015,0.01246157,2423.5,2422.2,16.05049901]
[1769880632213,0.01246157,2423.6,2422.2,16.05049901]
[1769880632441,0.01246157,2423.3,2422.2,16.05049901]
[1769880632649,0.01246157,2423.1,2422.2,16.05049901]
[1769880632858,0.01246157,2423.1,2422.3,1.73814981]
[1769880632859,0.01246157,2422.9,2422.3,1.73814981]
[1769880633020,0.01246157,2423.3,2422.3,1.73814981]
[1769880633220,0.01246157,2423.2,2422.0,1.0321964]
[1769880633542,0.01246157,2423.2,2422.1,14.5]
[1769880633732,0.01246157,2422.9,2422.3,0.0011]
[1769880633942,0.01246157,2422.4,2422.0,0.0011]
[1769880634544,0.01246157,2422.3,2422.0,0.0011]
[1769880634727,0.01246157,2422.3,2421.5,14.5]
[1769880634928,0.01246157,2422.3,2421.6,1.45]
[1769880635136,0.01246157,2422.4,2421.6,1.45]
[1769880635335,0.01246157,2422.3,2421.6,1.45]
[1769880635952,1.04272643,2422.0,2421.1,0.0011]
[1769880636123,0.01050076,2422.0,2421.1,0.0011]
[1769880636750,0.01246157,2422.0,2421.1,1.45132]
[1769880636917,0.01246157,2422.1,2421.1,1.45132]
[1769880637261,0.01246157,2421.9,2421.1,1.45132]
[1769880638068,0.01246157,2421.6,2420.8,0.0011]
[1769880638348,0.01246157,2421.5,2420.8,0.0011]
[1769880638719,0.01246157,2421.9,2420.8,0.0011]
[1769880638720,1.04463001,2422.1,2420.8,0.0011]
[1769880638922,0.01246157,2422.1,2420.8,0.0011]
[1769880639326,0.01246157,2421.6,2420.8,0.0011]
[1769880639527,0.01246157,2420.5,2419.8,0.0011]
[1769880639831,0.01246157,2419.9,2419.8,0.0011]
[1769880640034,0.01246157,2419.9,2419.2,1.03447301]
[1769880640035,0.01246157,2419.9,2419.2,0.0011]
[1769880640351,0.01246157,2419.4,2419.2,0.0011]
[1769880640721,0.01246157,2419.3,2419.2,0.0011]
[1769880641021,0.01246157,2419.3,2418.4,1.03370778]
[1769880641226,0.01246157,2418.7,2418.4,14.5]
[1769880641562,0.01246157,2418.6,2418.4,14.5]
[1769880641922,0.01246157,2418.2,2417.2,4.1369995]
[1769880642120,0.01246157,2419.4,2417.6,13.9211781]
[1769880642338,0.01246157,2419.7,2418.2,14.5]
[1769880642552,0.01246157,2419.4,2418.2,15.365]
[1769880642849,0.01246157,2419.9,2418.2,15.365]
[1769880643054,0.01246157,2420.1,2418.6,13.9200781]
[1769880643265,0.54171761,2420.2,2418.2,0.865]
[1769880643266,0.54171761,2420.2,2418.8,13.9200781]
[1769880643560,0.01246157,2420.1,2419.2,14.5]
[1769880643937,0.01246157,2420.0,2419.3,1.03335675]
[1769880644138,1e-08,2420.2,2419.4,1.27209079]
[1769880644337,0.01246157,2420.7,2419.4,1.27209079]
[1769880644642,0.01246157,2420.7,2419.5,0.23054475]
[1769880644838,0.01246157,2420.6,2419.5,0.23054475]
[1769880645049,0.01246157,2419.8,2419.2,14.5]
[1769880645354,0.01246157,2419.7,2418.7,2.25700781]
[1769880645525,0.01246157,2420.0,2418.1,13.9200781]
[1769880645730,0.01246157,2420.0,2418.9,0.0011]
[1769880645731,0.01246157,2419.3,2418.9,0.0011]
[1769880645966,0.01050054,2419.3,2418.9,0.0011]
[1769880646766,0.01246157,2419.0,2418.3,14.5]
[1769880646933,0.01246157,2419.2,2418.3,15.53376339]
[1769880647135,0.01246157,2420.2,2418.3,16.98376339]
[1769880647464,0.01246157,2420.7,2418.3,16.98376339]
[1769880647667,0.01246157,2420.5,2418.4,13.93253967]
[1769880647846,0.01246157,2420.4,2418.6,13.9200781]
[1769880648169,0.01246157,2420.4,2418.8,14.5]
[1769880648364,0.01246157,2420.4,2418.9,0.865]
[1769880648729,0.01246157,2420.3,2418.9,0.865]
[1769880649073,0.01246157,2420.1,2418.9,0.865]
[1769880649287,0.01246157,2420.5,2419.0,14.88341805]
[1769880649572,0.01246157,2420.7,2419.0,14.88341805]
[1769880649781,0.01246157,2421.0,2419.0,14.88341805]
[1769880650132,0.28461797,2421.8,2420.0,28.4200781]
[1769880650336,0.29707954,2421.8,2420.1,16.2360781]
[1769880650866,0.01246157,2421.6,2420.1,16.2360781]
[1769880651182,0.01246157,2421.7,2420.2,14.5]
[1769880651461,0.28461797,2421.8,2420.3,15.56295456]
[1769880651668,1.03318054,2422.1,2420.3,15.56295456]
[1769880651669,0.01246157,2422.0,2420.4,0.866]
[1769880651834,0.01246157,2421.7,2420.4,0.866]
[1769880652033,0.01246157,2421.9,2420.8,15.53270838]
[1769880652359,0.01346157,2422.1,2420.9,1.55327084]
[1769880652528,1.04562665,2422.1,2420.9,1.55327084]
[1769880652732,0.01346157,2422.1,2420.9,1.55327084]
[1769880652943,0.001,2422.1,2420.9,1.55327084]
[1769880653264,0.001,2422.1,2421.0,1.70859792]
[1769880653784,1.03316371,2422.1,2420.9,1.55327084]
[1769880653937,1.03316371,2422.1,2420.8,14.5]
[1769880653938,0.01246157,2421.8,2420.8,14.5]
[1769880654130,0.01246157,2421.4,2420.2,0.866]
[1769880654334,1.04481332,2421.7,2420.4,1.03287688]
[1769880654560,1.04481332,2421.7,2420.6,1.03276674]
[1769880654761,0.01246157,2421.7,2420.7,1.03275879]
[1769880655060,0.01246157,2422.0,2420.8,1.03271572]
[1769880655233,0.001,2422.1,2420.8,1.03271572]
[1769880655439,1.03316284,2422.1,2420.9,14.5]
[1769880655640,0.01246157,2421.7,2420.9,14.5]
[1769880655861,0.01246157,2421.6,2420.9,14.5]
[1769880656168,0.01246157,2421.4,2420.2,4.13186455]
[1769880656366,1.03241792,2421.5,2420.2,4.13186455]